lending/lending_fUSD_20260110
["ID","MTS","AMOUNT","RATE_DAILY","PERIOD"]
[401255095,1768078240530,-500.0,0.0001482,2]
[401255097,1768078240539,-500.0,0.0001482,2]
[401255099,1768078240549,-500.0,0.0001482,2]
[401255101,1768078240558,-500.0,0.0001482,2]
[401255103,1768078240567,-500.0,0.0001482,2]
[401255105,1768078240577,-500.0,0.0001482,2]
[401255107,1768078240586,-500.0,0.0001482,2]
[401255109,1768078240595,-500.0,0.0001482,2]
[401255111,1768078240604,-500.0,0.0001482,2]
[401255113,1768078240614,-500.0,0.0001482,2]
[401255115,1768078240623,-500.0,0.0001482,2]
[401255117,1768078240633,-500.0,0.0001482,2]
[401255119,1768078240642,-500.0,0.0001482,2]
[401255121,1768078240652,-500.0,0.0001482,2]
[401255123,1768078240661,-500.0,0.0001482,2]
[401255125,1768078240671,-500.0,0.0001482,2]
[401255127,1768078240680,-500.0,0.0001482,2]
[401255129,1768078240689,-610.79386728,0.0001482,2]
[401255131,1768078240698,-500.0,0.0001482,2]
[401255133,1768078240707,-500.0,0.0001482,2]
[401255135,1768078240716,-500.0,0.0001482,2]
[401255138,1768078240729,-500.0,0.0001482,2]
[401255140,1768078240739,-500.0,0.0001482,2]
[401255142,1768078240748,-528.37841332,0.0001482,2]
[401255144,1768078240757,-500.0,0.0001482,2]
[401255146,1768078240766,-554.37620255,0.0001482,2]
[401255148,1768078240776,-500.0,0.0001482,2]
[401255150,1768078240785,-500.0,0.0001482,2]
[401255152,1768078240795,-500.0,0.0001482,2]
[401255154,1768078240804,-500.0,0.0001482,2]
[401255156,1768078240814,-500.0,0.0001482,2]
[401255158,1768078240823,-500.0,0.0001482,2]
[401255160,1768078240832,-500.0,0.0001482,2]
[401255162,1768078240841,-500.0,0.0001482,2]
[401255164,1768078240851,-500.0,0.0001482,2]
[401255166,1768078240860,-500.0,0.0001482,2]
[401255168,1768078240869,-500.0,0.0001482,2]
[401255170,1768078240879,-500.0,0.0001482,2]
[401255172,1768078240888,-500.0,0.0001482,2]
[401255174,1768078240898,-500.0,0.0001482,2]
[401255176,1768078240907,-500.0,0.0001482,2]
[401255178,1768078240916,-500.0,0.0001482,2]
[401255181,1768078240926,-500.0,0.0001482,2]
[401255183,1768078240935,-500.0,0.0001482,2]
[401255185,1768078240944,-500.0,0.0001482,2]
[401255187,1768078240953,-500.0,0.0001482,2]
[401255189,1768078240963,-504.16339123,0.0001482,2]
[401255191,1768078240972,-500.0,0.00014848,2]
[401255193,1768078240982,-532.0,0.00014848,2]
[401255195,1768078240992,-500.0,0.00014874,2]
[401255197,1768078241002,-500.0,0.00014874,2]
[401255199,1768078241011,-150.0,0.00014874,2]
[401255201,1768078241020,-571.95,0.00014878,2]
[401255203,1768078241030,-500.0,0.00014903,2]
[401255205,1768078241040,-532.0,0.00014903,2]
[401255207,1768078241050,-2500.0,0.00014912,2]
[401255209,1768078241060,-500.0,0.0001492,2]
[401255211,1768078241069,-500.0,0.0001492,2]
[401255213,1768078241078,-500.0,0.0001492,2]
[401255215,1768078241093,-500.0,0.0001492,2]
[401255217,1768078241102,-500.0,0.0001492,2]
[401255219,1768078241111,-500.0,0.0001492,2]
[401255221,1768078241122,-273.4,0.0001492,2]
[401255223,1768078241132,-500.0,0.00014929,2]
[401255225,1768078241150,-500.0,0.00014929,2]
[401255227,1768078241166,-150.0,0.00014929,2]
[401255229,1768078241175,-500.0,0.00014958,2]
[401255232,1768078241186,-532.0,0.00014958,2]
[401255234,1768078241195,-455.28552746,0.00014983,2]
[401255236,1768078241206,-502.22048601,0.00014983,2]
[401255238,1768078241216,-157.21654538,0.00014983,2]
[401255240,1768078241226,-500.0,0.00014987,2]
[401255242,1768078241235,-500.0,0.00014987,2]
[401255244,1768078241245,-506.46687263,0.00014987,2]
[401255246,1768078241254,-500.0,0.00014987,2]
[401255248,1768078241264,-500.0,0.00014987,2]
[401255250,1768078241274,-500.0,0.00014987,2]
[401255252,1768078241283,-500.0,0.00014987,2]
[401255254,1768078241296,-500.0,0.00014987,2]
[401255256,1768078241306,-578.42921764,0.00014994,2]
[401255258,1768078241317,-500.0,0.00015001,2]
[401255260,1768078241327,-520.12765794,0.00015001,2]
[401255262,1768078241336,-500.0,0.00015001,2]
[401255264,1768078241347,-500.0,0.00015001,2]
[401255266,1768078241357,-500.0,0.00015001,2]
[401255268,1768078241367,-500.0,0.00015001,2]
[401255270,1768078241377,-500.0,0.00015012,2]
[401255272,1768078241386,-532.0,0.00015012,2]
[401255275,1768078241395,-500.0,0.0001502,2]
[401255277,1768078241404,-500.0,0.0001502,2]
[401255279,1768078241414,-500.0,0.0001502,2]
[401255281,1768078241423,-500.0,0.0001502,2]
[401255283,1768078241432,-500.0,0.0001502,2]
[401255285,1768078241442,-500.0,0.0001502,2]
[401255287,1768078241451,-500.0,0.0001502,2]
[401255289,1768078241461,-500.0,0.0001502,2]
[401255291,1768078241471,-500.0,0.0001502,2]
[401255293,1768078241480,-500.0,0.0001502,2]
[401255295,1768078241493,-500.0,0.0001502,2]
[401255297,1768078241502,-500.0,0.0001502,2]
[401255299,1768078241512,-500.0,0.0001502,2]
[401255301,1768078241521,-500.0,0.0001502,2]
[401255303,1768078241531,-4370.0865396,0.00015063,2]
[401255305,1768078241541,-500.0,0.00015067,2]
[401255307,1768078241551,-532.0,0.00015067,2]
[401255309,1768078241560,-500.0,0.00015068,2]
[401255311,1768078241570,-1589.98,0.00015068,2]
[401255313,1768078241580,-1428.32031009,0.00015114,2]
[401255315,1768078241589,-500.0,0.00015122,2]
[401255317,1768078241599,-532.0,0.00015122,2]
[401255320,1768078241609,-409.02215808,0.00015124,2]
[401255322,1768078241620,-553.64373807,0.00015124,2]
[401255324,1768078241630,-1000.0,0.00015124,2]
[401255326,1768078241639,-151.0,0.00015124,2]
[401255327,1768078241648,-1000.0,0.00015124,2]
[401255330,1768078241658,-250.0,0.00015124,2]
[401255331,1768078241667,-250.0,0.00015124,2]
[401255334,1768078241677,-1000.0,0.00015124,2]
[401255336,1768078241690,-250.0,0.00015124,2]
[401255338,1768078241700,-250.0,0.00015124,2]
[401255340,1768078241709,-250.0,0.00015124,2]
[401255342,1768078241719,-250.0,0.00015124,2]
[401255344,1768078241729,-250.0,0.00015124,2]
[401255346,1768078241738,-250.0,0.00015124,2]
[401255348,1768078241748,-250.0,0.00015124,2]
[401255350,1768078241758,-250.0,0.00015124,2]
[401255352,1768078241767,-250.0,0.00015124,2]
[401255354,1768078241776,-250.0,0.00015124,2]
[401255356,1768078241788,-250.0,0.00015124,2]
[401255358,1768078241798,-250.0,0.00015124,2]
[401255360,1768078241808,-250.0,0.00015124,2]
[401255362,1768078241817,-250.0,0.00015124,2]
[401255364,1768078241827,-500.0,0.00015124,2]
[401255366,1768078241839,-500.0,0.00015124,2]
[401255368,1768078241848,-500.0,0.00015124,2]
[401255370,1768078241857,-500.0,0.00015124,2]
[401255372,1768078241870,-998.0,0.00015124,2]
[401255375,1768078241880,-500.0,0.00015124,2]
[401255377,1768078241892,-500.0,0.00015124,2]
[401255379,1768078241902,-500.0,0.00015124,2]
[401255381,1768078241912,-500.0,0.00015124,2]
[401255383,1768078241922,-151.0,0.00015124,2]
[401255385,1768078241931,-250.0,0.00015124,2]
[401255387,1768078241941,-500.0,0.00015124,2]
[401255389,1768078241951,-250.0,0.00015124,2]
[401255391,1768078241960,-500.0,0.00015124,2]
[401255393,1768078241971,-250.0,0.00015124,2]
[401255395,1768078241980,-250.0,0.00015124,2]
[401255398,1768078241990,-500.0,0.00015124,2]
[401255400,1768078242000,-250.0,0.00015124,2]
[401255402,1768078242009,-500.0,0.00015124,2]
[401255404,1768078242019,-250.0,0.00015124,2]
[401255406,1768078242029,-500.0,0.00015124,2]
[401255408,1768078242038,-250.0,0.00015124,2]
[401255410,1768078242048,-250.0,0.00015124,2]
[401255412,1768078242057,-250.0,0.00015124,2]
[401255414,1768078242067,-250.0,0.00015124,2]
[401255416,1768078242077,-250.0,0.00015124,2]
[401255418,1768078242087,-250.0,0.00015124,2]
[401255420,1768078242096,-204.8394393,0.00015124,2]
[401255422,1768078242106,-250.0,0.00015124,2]
[401255424,1768078242116,-250.0,0.00015124,2]
[401255426,1768078242126,-250.0,0.00015124,2]
[401255428,1768078242135,-250.0,0.00015124,2]
[401255430,1768078242145,-250.0,0.00015124,2]
[401255432,1768078242155,-250.0,0.00015124,2]
[401255434,1768078242164,-250.0,0.00015124,2]
[401255436,1768078242173,-250.0,0.00015124,2]
[401255438,1768078242182,-250.0,0.00015124,2]
[401255440,1768078242191,-500.0,0.00015124,2]
[401255442,1768078242201,-250.0,0.00015124,2]
[401255445,1768078242211,-500.0,0.00015124,2]
[401255447,1768078242221,-250.0,0.00015124,2]
[401255450,1768078242229,-250.0,0.00015124,2]
[401255452,1768078242238,-500.0,0.00015124,2]
[401255454,1768078242248,-500.0,0.00015124,2]
[401255456,1768078242257,-500.0,0.00015124,2]
[401255459,1768078242280,-500.0,0.00015124,2]
[401255461,1768078242289,-500.0,0.00015124,2]
[401255462,1768078242299,-500.0,0.00015124,2]
[401255463,1768078242309,-500.0,0.00015124,2]
[401255464,1768078242318,-500.0,0.00015124,2]
[401255465,1768078242328,-500.0,0.00015124,2]
[401255467,1768078242337,-500.0,0.00015124,2]
[401255469,1768078242347,-200.0,0.0001516,2]
[401255471,1768078242356,-200.0,0.0001516,2]
[401255473,1768078242365,-500.0,0.0001516,2]
[401255475,1768078242375,-500.0,0.00015172,2]
[401255477,1768078242384,-500.0,0.00015172,2]
[401255479,1768078242394,-500.0,0.00015172,2]
[401255481,1768078242405,-500.0,0.00015172,2]
[401255483,1768078242415,-500.0,0.00015172,2]
[401255485,1768078242425,-260.06429066,0.00015172,2]
[401255487,1768078242435,-500.0,0.00015173,2]
[401255489,1768078242444,-501.08291115,0.00015173,2]
[401255491,1768078242454,-500.0,0.00015173,2]
[401255493,1768078242463,-500.0,0.00015173,2]
[401255496,1768078242474,-412.86652117,0.00015173,2]
[401255498,1768078242483,-500.0,0.00015173,2]
[401255500,1768078242492,-500.0,0.00015173,2]
[401255502,1768078242502,-500.0,0.00015173,2]
[401255504,1768078242511,-500.0,0.00015173,2]
[401255506,1768078242521,-500.0,0.00015173,2]
[401255508,1768078242530,-500.0,0.00015173,2]
[401255510,1768078242540,-500.0,0.00015173,2]
[401255512,1768078242549,-500.0,0.00015173,2]
[401255514,1768078242559,-500.0,0.00015173,2]
[401255516,1768078242568,-500.0,0.00015173,2]
[401255518,1768078242578,-500.0,0.00015173,2]
[401255520,1768078242587,-500.0,0.00015173,2]
[401255522,1768078242596,-500.0,0.00015173,2]
[401255524,1768078242606,-500.0,0.00015173,2]
[401255526,1768078242615,-500.0,0.00015173,2]
[401255528,1768078242625,-500.0,0.00015173,2]
[401255530,1768078242634,-500.0,0.00015173,2]
[401255532,1768078242643,-500.51555347,0.00015173,2]
[401255534,1768078242653,-500.0,0.00015173,2]
[401255536,1768078242662,-500.0,0.00015173,2]
[401255538,1768078242671,-500.0,0.00015173,2]
[401255540,1768078242680,-500.0,0.00015177,2]
[401255543,1768078242690,-532.0,0.00015177,2]
[401255545,1768078242700,-1474.42032824,0.00015202,2]
[401255547,1768078242709,-272.39333188,0.00015219,2]
[401255549,1768078242719,-272.39333188,0.00015219,2]
[401255551,1768078242729,-500.0,0.00015232,2]
[401255553,1768078242738,-532.0,0.00015232,2]
[401255555,1768078242747,-500.0,0.00015286,2]
[401255557,1768078242756,-532.0,0.00015286,2]
[401255559,1768078242766,-1197.7,0.0001531,2]
[401255561,1768078242775,-1266.47,0.0001531,2]
[401255563,1768078242785,-500.0,0.00015341,2]
[401255565,1768078242798,-532.0,0.00015341,2]
[401255567,1768078242808,-500.0,0.00015342,2]
[401255569,1768078242818,-1589.98,0.00015342,2]
[401255571,1768078242827,-16402.69904283,0.00015351,2]
[401255573,1768078242837,-500.0,0.00015396,2]
[401255576,1768078242847,-532.0,0.00015396,2]
[401255578,1768078242857,-279.96,0.00015421,2]
[401255580,1768078242867,-500.0,0.00015421,2]
[401255582,1768078242876,-629.25,0.00015421,2]
[401255584,1768078242886,-500.0,0.00015421,2]
[401255586,1768078242895,-500.0,0.00015421,2]
[401255588,1768078242905,-595.99953711,0.00015451,2]
[401255590,1768078242914,-532.0,0.00015451,2]
[401255592,1768078242923,-177.9,0.000155,2]
[401255594,1768078242932,-532.0,0.00015506,2]
[401255596,1768078242942,-532.0,0.0001556,2]
[401255598,1768078242952,-571.95,0.00015586,2]
[401255600,1768078242961,-532.0,0.00015615,2]
[401255602,1768078242971,-500.0,0.00015616,2]
[401255604,1768078242981,-1589.98,0.00015616,2]
[401255606,1768078242991,-16402.69904283,0.00015634,2]
[401255608,1768078243000,-2463.25553366,0.0001564,2]
[401255610,1768078243010,-532.0,0.0001567,2]
[401255612,1768078243019,-574.12855637,0.00015672,2]
[401255614,1768078243028,-151.0,0.00015672,2]
[401255616,1768078243037,-200.0,0.00015708,2]
[401255618,1768078243047,-200.0,0.00015708,2]
[401255620,1768078243057,-500.0,0.00015708,2]
[401255622,1768078243067,-500.0,0.00015721,2]
[401255624,1768078243076,-500.0,0.00015721,2]
[401255626,1768078243086,-1000.0,0.00015721,2]
[401255628,1768078243095,-1000.0,0.00015721,2]
[401255631,1768078243107,-1000.0,0.00015721,2]
[401255633,1768078243117,-500.0,0.00015721,2]
[401255635,1768078243127,-1000.0,0.00015721,2]
[401255637,1768078243136,-227.61155844,0.00015721,2]
[401255639,1768078243145,-800.18716845,0.00015721,2]
[401255641,1768078243155,-1000.0,0.00015721,2]
[401255644,1768078243165,-1000.0,0.00015721,2]
[401255646,1768078243179,-501.54454633,0.00015721,2]
[401255648,1768078243188,-1000.0,0.00015721,2]
[401255650,1768078243198,-989.61533507,0.00015721,2]
[401255652,1768078243208,-1000.0,0.00015721,2]
[401255654,1768078243218,-1000.0,0.00015721,2]
[401255656,1768078243228,-1133.20600999,0.00015721,2]
[401255658,1768078243238,-1000.0,0.00015721,2]
[401255660,1768078243247,-1000.0,0.00015721,2]
[401255662,1768078243258,-532.0,0.00015725,2]
[401255665,1768078243268,-255.0,0.00015736,2]
[401255667,1768078243277,-1000.0,0.00015777,2]
[401255669,1768078243287,-2113.75,0.00015777,2]
[401255671,1768078243296,-999.0,0.00015777,3]
[401255673,1768078243305,-532.0,0.00015779,2]
[401255675,1768078243316,-500.0,0.0001578,2]
[401255677,1768078243325,-500.0,0.0001578,2]
[401255679,1768078243335,-500.0,0.0001578,2]
[401255681,1768078243345,-500.0,0.0001578,2]
[401255683,1768078243354,-500.0,0.0001578,2]
[401255685,1768078243364,-552.26100549,0.00015834,2]
[401255687,1768078243374,-500.0,0.0001589,2]
[401255689,1768078243383,-1589.98,0.0001589,2]
[401255691,1768078243394,-16402.69904283,0.00015917,2]
[401255694,1768078243404,-839.1,0.00015918,2]
[401255696,1768078243414,-1680.0,0.00015971,2]
[401255698,1768078243423,-250.0,0.00015992,2]
[401255700,1768078243432,-195.0,0.00015992,2]
[401255701,1768078243441,-300.0,0.00015992,2]
[401255703,1768078243451,-250.0,0.00015992,2]
[401255706,1768078243460,-300.0,0.00015992,2]
[401255708,1768078243471,-272.39333188,0.00015999,2]
[401255709,1768078243480,-272.39333188,0.00015999,2]
[401255712,1768078243490,-200.366694,0.00016,2]
[401255714,1768078243500,-3389.0,0.00016038,2]
[401255716,1768078243511,-9999.99,0.00016116,2]
[401255718,1768078243521,-500.0,0.00016164,2]
[401255720,1768078243531,-1589.98,0.00016164,2]
[401255722,1768078243541,-566.60097493,0.00016199,2]
[401255724,1768078243550,-500.0,0.00016199,2]
[401255727,1768078243564,-500.0,0.00016199,2]
[401255729,1768078243574,-150.0,0.000162,2]
[401255731,1768078243584,-150.0,0.000162,2]
[401255767,1768078243904,-150.0,0.000162,2]
[401255769,1768078243914,-150.0,0.000162,2]
[401255771,1768078243923,-150.0,0.000162,2]
[401255773,1768078243932,-150.0,0.000162,2]
[401255776,1768078243942,-150.0,0.000162,2]
[401255778,1768078243952,-150.0,0.000162,2]
[401255780,1768078243961,-150.0,0.000162,2]
[401255782,1768078243971,-150.0,0.000162,2]
[401255783,1768078243980,-150.0,0.000162,2]
[401255786,1768078243990,-150.0,0.000162,2]
[401255788,1768078243999,-150.0,0.000162,2]
[401255790,1768078244008,-150.0,0.000162,2]
[401255792,1768078244017,-150.0,0.000162,2]
[401255794,1768078244028,-150.0,0.000162,2]
[401255796,1768078244037,-16402.69904283,0.00016201,2]
[401255798,1768078244047,-176.40443503,0.0001622,2]
[401255800,1768078244056,-151.0,0.0001622,2]
[401255802,1768078244066,-200.0,0.00016256,2]
[401255804,1768078244075,-200.0,0.00016256,2]
[401255806,1768078244084,-500.0,0.00016256,2]
[401255807,1768078244093,-1000.0,0.0001626,2]
[401255808,1768078244104,-150.0,0.00016267,2]
[401255809,1768078244114,-1376.30281883,0.00016268,2]
[401255810,1768078244124,-1500.0,0.00016268,2]
[401255811,1768078244134,-302.24106746,0.00016268,2]
[401255812,1768078244144,-1500.0,0.00016268,2]
[401255814,1768078244153,-379.40330386,0.00016268,2]
[401255815,1768078244163,-1500.0,0.00016268,2]
[401255816,1768078244172,-505.81602002,0.00016268,2]
[401255818,1768078244182,-1500.0,0.00016268,2]
[401255820,1768078244192,-1500.0,0.00016268,2]
[401255821,1768078244202,-1500.0,0.00016268,2]
[401255822,1768078244213,-1500.0,0.00016268,2]
[401255823,1768078244224,-150.0,0.00016278,2]
[401255824,1768078244237,-150.0,0.00016286,2]
[401255825,1768078244247,-166.66,0.00016286,2]
[401255826,1768078244256,-571.95,0.00016295,2]
[401255827,1768078244266,-150.0,0.00016295,2]
[401255828,1768078244275,-150.0,0.00016306,2]
[401255829,1768078244285,-150.0,0.00016312,2]
[401255830,1768078244295,-150.0,0.00016333,2]
[401255831,1768078244304,-150.0,0.00016357,2]
[401255832,1768078244313,-150.0,0.00016371,2]
[401255833,1768078244323,-150.0,0.00016389,2]
[401255834,1768078244333,-150.0,0.000164,2]
[401255835,1768078244342,-150.0,0.00016412,2]
[401255836,1768078244352,-150.0,0.00016425,2]
[401255837,1768078244361,-150.0,0.00016435,2]
[401255838,1768078244371,-500.0,0.00016437,2]
[401255840,1768078244381,-500.0,0.00016437,2]
[401255842,1768078244390,-500.0,0.00016437,2]
[401255844,1768078244400,-500.0,0.00016437,2]
[401255845,1768078244409,-500.0,0.00016437,2]
[401255847,1768078244420,-500.0,0.00016437,2]
[401255849,1768078244429,-500.0,0.00016438,2]
[401255851,1768078244439,-500.0,0.00016438,2]
[401255852,1768078244449,-500.0,0.00016438,2]
[401255853,1768078244459,-500.0,0.00016438,2]
[401255855,1768078244469,-500.0,0.00016438,2]
[401255857,1768078244478,-500.0,0.00016438,2]
[401255859,1768078244487,-500.0,0.00016438,2]
[401255860,1768078244497,-500.0,0.00016438,2]
[401255862,1768078244507,-500.0,0.00016438,2]
[401255864,1768078244516,-500.0,0.00016438,2]
[401255865,1768078244526,-500.0,0.00016438,2]
[401255866,1768078244538,-273.99457816,0.00016438,2]
[401255867,1768078244549,-500.0,0.00016438,2]
[401255868,1768078244560,-500.0,0.00016438,2]
[401255869,1768078244570,-500.0,0.00016438,2]
[401255870,1768078244580,-500.0,0.00016438,2]
[401255871,1768078244591,-500.0,0.00016438,2]
[401255872,1768078244603,-500.0,0.00016438,2]
[401255873,1768078244613,-500.0,0.00016438,2]
[401255874,1768078244623,-500.0,0.00016438,2]
[401255875,1768078244635,-500.0,0.00016438,2]
[401255876,1768078244645,-500.0,0.00016438,2]
[401255877,1768078244655,-500.0,0.00016438,2]
[401255878,1768078244664,-500.0,0.00016438,2]
[401255879,1768078244674,-500.0,0.00016438,2]
[401255880,1768078244686,-796.28439965,0.00016438,2]
[401255881,1768078244697,-796.28439965,0.00016438,2]
[401255882,1768078244707,-796.28439965,0.00016438,2]
[401255883,1768078244718,-796.28439965,0.00016438,2]
[401255884,1768078244729,-796.28439965,0.00016438,2]
[401255885,1768078244740,-796.28439965,0.00016438,2]
[401255886,1768078244762,-796.28439965,0.00016438,2]
[401255887,1768078244772,-796.28439965,0.00016438,2]
[401255888,1768078244782,-796.28439965,0.00016438,2]
[401255889,1768078244792,-796.28439965,0.00016438,2]
[401255890,1768078244801,-796.28439965,0.00016438,2]
[401255891,1768078244811,-796.28439965,0.00016438,2]
[401255892,1768078244820,-796.28439965,0.00016438,2]
[401255893,1768078244830,-796.28439965,0.00016438,2]
[401255894,1768078244839,-796.28439965,0.00016438,2]
[401255895,1768078244848,-796.28439965,0.00016438,2]
[401255896,1768078244858,-796.28439965,0.00016438,2]
[401255897,1768078244868,-796.28439965,0.00016438,2]
[401255898,1768078244879,-796.28439965,0.00016438,2]
[401255899,1768078244889,-796.28439965,0.00016438,2]
[401255900,1768078244899,-796.28439965,0.00016438,2]
[401255901,1768078244908,-796.28439965,0.00016438,2]
[401255902,1768078244918,-796.28439965,0.00016438,2]
[401255903,1768078244929,-796.28439965,0.00016438,2]
[401255904,1768078244939,-796.28439965,0.00016438,2]
[401255905,1768078244948,-796.28439965,0.00016438,2]
[401255906,1768078244959,-796.28439965,0.00016438,2]
[401255907,1768078244969,-796.28439965,0.00016438,2]
[401255908,1768078244978,-796.28439965,0.00016438,2]
[401255910,1768078244987,-796.28439965,0.00016438,2]
[401255911,1768078245004,-796.28439965,0.00016438,2]
[401255912,1768078245013,-796.28439965,0.00016438,2]
[401255913,1768078245023,-796.28439965,0.00016438,2]
[401255914,1768078245032,-796.28439965,0.00016438,2]
[401255915,1768078245042,-796.28439965,0.00016438,2]
[401255916,1768078245052,-796.28439965,0.00016438,2]
[401255917,1768078245062,-796.28439965,0.00016438,2]
[401255919,1768078245072,-796.28439965,0.00016438,2]
[401255921,1768078245081,-796.28439965,0.00016438,2]
[401255923,1768078245091,-796.28439965,0.00016438,2]
[401255924,1768078245100,-796.28439965,0.00016438,2]
[401255925,1768078245111,-796.28439965,0.00016438,2]
[401255926,1768078245120,-796.28439965,0.00016438,2]
[401255927,1768078245130,-796.28439965,0.00016438,2]
[401255928,1768078245140,-796.28439965,0.00016438,2]
[401255929,1768078245152,-796.28439965,0.00016438,2]
[401255930,1768078245162,-796.28439965,0.00016438,2]
[401255931,1768078245172,-796.28439965,0.00016438,2]
[401255933,1768078245182,-796.28439965,0.00016438,2]
[401255934,1768078245191,-796.28439965,0.00016438,2]
[401255935,1768078245201,-796.28439965,0.00016438,2]
[401255936,1768078245210,-796.28439965,0.00016438,2]
[401255937,1768078245220,-771.78334122,0.00016438,2]
[401255938,1768078245229,-771.78334122,0.00016438,2]
[401255939,1768078245239,-771.78334122,0.00016438,2]
[401255940,1768078245249,-771.78334122,0.00016438,2]
[401255941,1768078245258,-771.78334122,0.00016438,2]
[401255942,1768078245268,-771.78334122,0.00016438,2]
[401255943,1768078245277,-771.78334122,0.00016438,2]
[401255944,1768078245287,-771.78334122,0.00016438,2]
[401255946,1768078245296,-771.78334122,0.00016438,2]
[401255948,1768078245306,-771.78334122,0.00016438,2]
[401255950,1768078245316,-771.78334122,0.00016438,2]
[401255952,1768078245325,-771.78334122,0.00016438,2]
[401255953,1768078245334,-771.78334118,0.00016438,2]
[401255954,1768078245344,-150.0,0.00016438,2]
[401255955,1768078245353,-1589.98,0.00016438,2]
[401255956,1768078245363,-3498.48,0.00016438,2]
[401255957,1768078245373,-1000.0,0.00016448,2]
[401255958,1768078245383,-150.0,0.00016457,2]
[401255959,1768078245393,-150.0,0.00016467,2]
[401255960,1768078245403,-16402.69904283,0.00016484,2]
[401255961,1768078245412,-150.0,0.00016484,2]
[401255962,1768078245422,-500.0,0.00016486,2]
[401255963,1768078245432,-500.0,0.00016486,2]
[401255964,1768078245441,-500.0,0.00016486,2]
[401255965,1768078245451,-575.35243908,0.00016486,2]
[401255966,1768078245460,-500.0,0.00016486,2]
[401255967,1768078245470,-500.0,0.00016492,2]
[401255968,1768078245480,-500.0,0.00016492,2]
[401255969,1768078245490,-150.0,0.00016493,2]
[401255970,1768078245501,-151.0,0.00016493,2]
[401255971,1768078245510,-150.0,0.000165,2]
[401255972,1768078245520,-150.0,0.000165,2]
[401255973,1768078245530,-150.0,0.00016513,2]
[401255974,1768078245539,-839.1,0.00016515,2]
[401255975,1768078245549,-150.0,0.00016518,2]
[401255976,1768078245558,-150.0,0.00016533,2]
[401255977,1768078245568,-150.0,0.00016537,2]
[401255978,1768078245577,-150.0,0.00016543,2]
[401255979,1768078245587,-150.0,0.00016548,2]
[401255980,1768078245596,-150.0,0.00016579,2]
[401255981,1768078245606,-150.0,0.00016591,2]
[401255982,1768078245616,-150.0,0.000166,2]
[401255983,1768078245626,-150.0,0.00016602,2]
[401255984,1768078245635,-150.0,0.00016624,2]
[401255986,1768078245645,-150.0,0.00016629,2]
[401255988,1768078245654,-150.0,0.0001665,2]
[401255990,1768078245663,-171.48,0.00016653,2]
[401255991,1768078245672,-214.30783794,0.00016657,2]
[401255992,1768078245682,-150.0,0.00016667,2]
[401255993,1768078245693,-150.0,0.0001667,2]
[401255994,1768078245708,-150.0,0.00016674,2]
[401255995,1768078245717,-236.44,0.00016706,2]
[401255996,1768078245727,-1589.98,0.00016712,2]
[401255997,1768078245737,-150.0,0.00016714,2]
[401255998,1768078245747,-150.0,0.00016729,2]
[401256001,1768078245756,-150.0,0.00016733,2]
[401256003,1768078245765,-150.0,0.00016748,2]